Cogmind - Beta 13 @@@ ROGUE MODE // 2024.04.20 @ 13:22:19 Player: Fazzonamite Result: Destroyed by L-31 Rogue with Katana Performance ------------- Evolutions (1) 500 Regions Visited (3) 600 Robots Destroyed (9) 45 Value Destroyed (257) 257 Prototype IDs (0) 0 Alien Tech Used (0) 0 Bonus (0) 0 TOTAL SCORE: 1402 Bonus ------- None Cogmind --------- Core Integrity 0/400 Matter 300/300 Energy 100/100 System Corruption 0% Temperature Cool (0) Movement Core (200) Ox3 Location -9/Materials Parts ------- > --- POWER (1) -------- (None) > --- PROPULSION (3) --- (None) > --- UTILITY (3) ------ Medium Storage Unit > --- WEAPON (2) ------- (None) > --- INVENTORY (10) --- Light Ion Engine Light Ion Engine Improved Heat Sink Cooling System Seismic Detector Peak State ------------ > --- POWER ------------ Ion Engine > --- PROPULSION ------- Wheel Compact Wheel > --- UTILITY ---------- Medium Storage Unit Structural Scanner > --- WEAPON ----------- EM Pulse Gun Assault Rifle > --- INVENTORY -------- Ion Engine Light Ion Engine Light Ion Engine Aluminum Leg Aluminum Leg Improved Heat Sink Seismic Detector Core Shielding Light Assault Rifle [Rating: 8] Favorites ----------- Power Ion Engine Engine Ion Engine Propulsion Compact Wheel Leg Aluminum Leg Wheel Compact Wheel Utility Medium Storage Unit Device Structural Scanner Storage Medium Storage Unit Protection Core Shielding Weapon Assault Rifle Energy Gun EM Pulse Gun Ballistic Gun Assault Rifle Launcher Grenade Launcher Build | -11 -10 -10 -9 ------- Run | Yrd Mat Min Mat Slots Evolved 2 | . . . 2 Power . | . . . . Propulsion 1 | . . . 1 Utility 1 | . . . 1 Weapon . | . . . . Parts Attached 18 | 6 5 2 5 Power 2 | . 1 . 1 Engine 2 | . 1 . 1 Core . | . . . . Reactor . | . . . . Propulsion 4 | 2 . . 2 Treads . | . . . . Leg 2 | . . . 2 Wheel 2 | 2 . . . Hover . | . . . . Flight . | . . . . Utility 6 | 1 2 1 2 Device 3 | . 1 1 1 Storage 2 | 1 1 . . Processor . | . . . . Hackware . | . . . . Protection 1 | . . . 1 Artifact . | . . . . Weapon 6 | 3 2 1 . Energy Gun 1 | 1 . . . Energy Cannon . | . . . . Ballistic Gun 4 | 2 1 1 . Ballistic Cannon . | . . . . Launcher 1 | . 1 . . Special Weapon . | . . . . Impact Weapon . | . . . . Slashing Weapon . | . . . . Piercing Weapon . | . . . . Special Melee Weapon . | . . . . Unidentified Prototypes . | . . . . Parts Lost 11 | . 1 6 4 Power 2 | . . 1 1 Propulsion 3 | . . 2 1 Utility 2 | . . 1 1 Weapon 4 | . 1 2 1 Highest Loss Streak 6 | . 1 6 4 To Critical Strikes . | . . . . Average Slot Usage (%) 76 | . 87 60 66 Engine 5 | . 3 8 8 Leg 6 | . . . 17 Wheel 16 | . 28 16 . Device 12 | . 13 10 11 Storage 12 | . 14 14 11 Protection 2 | . . . 7 Energy Gun 7 | . 14 2 . Ballistic Gun 11 | . 12 10 9 Naked Turns . | . . . . Heaviest Build 20 | 9 20 18 18 Greatest Support 26 | 26 26 26 20 Greatest Overweight (x) 3 | . . 3 3 Average Overweight (x) . | . . 1 . Largest Inventory Capacity 10 | 8 10 10 10 Average Capacity 9 | 6 9 10 10 Most Carried 10 | 6 10 10 7 Average Carried 6 | 3 7 9 4 Final Capacity 10 | 8 10 10 10 Final Carried 10 | 5 10 8 5 Class Distribution -------------------- 100% | Mutant Dominant Class ---------------- Mutant | -10/Materials Mutant | -10/Mines Mutant | -9/Materials Resources | -11 -10 -10 -9 ----------- Run | Yrd Mat Min Mat Matter Collected 452 | 220 144 29 59 Remotely . | . . . . Salvage Created 282 | . 211 18 53 Parts 20 | . 12 1 7 Haulers Intercepted . | . . . . Recyclers Shooed . | . . . . Parts Field Recycled . | . . . . Retrieved Matter . | . . . . Parts Self-Destructed . | . . . . Prevented . | . . . . Kills | -11 -10 -10 -9 ------- Run | Yrd Mat Min Mat Combat Hostiles Destroyed 6 | . 4 1 1 Guns 6 | . 4 1 1 Classes Destroyed 5 | . 3 1 1 Worker 1 | . 1 . . Watcher 2 | . 2 . . Swarmer 1 | . . 1 . Grunt 4 | . 4 . . Sentry 1 | . . . 1 Best Kill Streak 3 | . 3 1 1 Combat Bots Only 2 | . 2 1 1 Max Kills in Single Turn 1 | . 1 1 1 Gunslinging . | . . . . Exploded . | . . . . Melee . | . . . . Uniques/NPCs Destroyed . | . . . . Combat | -11 -10 -10 -9 -------- Run | Yrd Mat Min Mat Hostile Shots Fired 158 | . 24 25 109 Missed 55 | . 7 13 35 Damage Taken 1435 | . 246 306 883 Core 533 | . 54 68 411 Absorbed by Shields . | . . . . Redirected to Shielding 42 | . . . 42 Core Remaining (%) 75 | 100 . 51 . Volleys Fired 30 | . 17 3 10 Largest 2 | . 2 2 1 Hottest 70 | . 70 60 20 Shots Fired 47 | . 32 5 10 Gun 45 | . 30 5 10 Cannon . | . . . . Launcher 2 | . 2 . . Special . | . . . . Kinetic 26 | . 13 3 10 Thermal . | . . . . Explosive 2 | . 2 . . Electromagnetic 19 | . 17 2 . Robot Hit Streak 7 | . 7 1 6 Robot Miss Streak 3 | . 2 3 2 Penetration Max . | . . . . Secondary Targets . | . . . . Shots Hit Robots 29 | . 20 1 8 Core Hits 16 | . 11 1 4 Critical Kills . | . . . . Critical Parts Destroyed . | . . . . Critical Strikes . | . . . . Melee Attacks . | . . . . Impact . | . . . . Slashing . | . . . . Piercing . | . . . . Sneak Attacks . | . . . . Combat Hostiles . | . . . . Follow-up Attacks . | . . . . Damage Inflicted 546 | . 470 14 62 Guns 352 | . 276 14 62 Cannons . | . . . . Explosions 194 | . 194 . . Melee . | . . . . Ramming . | . . . . Kinetic 178 | . 102 14 62 Thermal . | . . . . Explosive 194 | . 194 . . Electromagnetic 174 | . 174 . . Impact . | . . . . Slashing . | . . . . Piercing . | . . . . Highest Corruption 1 | . 1 1 . Average Corruption 1 | . 1 1 . Corruption Purged . | . . . . Corruption Blocked . | . . . . Effects 1 | . . 1 . Matter Fused 1 | . . 1 . Overload Shots . | . . . . Overflow Damage 6 | . 6 . . Projectiles . | . . . . Explosions 6 | . 6 . . Melee . | . . . . Knockbacks . | . . . . Impact . | . . . . Kinetic . | . . . . Secondary . | . . . . Self-Inflicted Damage . | . . . . Shots . | . . . . Rammed . | . . . . Targets Rammed . | . . . . Kicked . | . . . . Crushed . | . . . . Highest Temperature 24 | . 24 . 24 Average Temperature 10 | . 10 . 10 Received Heat Transfer 228 | . 114 . 114 Siege Activations . | . . . . Robots Corrupted . | . . . . Combat Hostiles . | . . . . Parts Fried . | . . . . Impact Corruptions . | . . . . Robots Melted . | . . . . Combat Hostiles . | . . . . Parts Melted . | . . . . Heat Transferred . | . . . . Parts Sabotaged . | . . . . Parts Stolen . | . . . . Parts Stripped . | . . . . Power Chain Reactions . | . . . . Alert | -11 -10 -10 -9 ------- Run | Yrd Mat Min Mat Peak Influence 169 | . 169 110 79 Initial 65 | . . 65 19 Average 61 | . 80 74 42 Maximum Alert Level . | . . . . Low Security (%) 100 | 100 100 100 100 Level 1 . | . . . . Level 2 . | . . . . Level 3 . | . . . . Level 4 . | . . . . Level 5 . | . . . . High Security . | . . . . Max Security . | . . . . Squads Dispatched 1 | . 1 . . Investigation . | . . . . Extermination . | . . . . Reinforcement 1 | . 1 . . Assault . | . . . . Garrison . | . . . . Intercept . | . . . . Searches Triggered . | . . . . Construction Impeded . | . . . . Haulers Reinforced . | . . . . Active Scanning Responses . | . . . . Cargo Convoy Interrupts . | . . . . Stealth | -11 -10 -10 -9 --------- Run | Yrd Mat Min Mat Distress Signals 1 | . 1 . . Communications Jammed . | . . . . Distress Signals . | . . . . Times Spotted 25 | . 8 10 7 Peak Tracking Total 7 | . 3 7 6 Tactical Retreats 1 | . . . 1 Traps | -11 -10 -10 -9 ------- Run | Yrd Mat Min Mat Traps Triggered 2 | . 1 . 1 Indirectly . | . . . . Trap Hack Attempts . | . . . . Triggered . | . . . . Disarmed . | . . . . Reprogrammed . | . . . . Reused . | . . . . Traps Extracted . | . . . . Installed . | . . . . Triggered . | . . . . Machines | -11 -10 -10 -9 ---------- Run | Yrd Mat Min Mat Machines Disabled 2 | . 1 1 . Max in Single Turn 1 | . 1 1 . Machines Repaired . | . . . . Machines Dismantled . | . . . . Machines Sabotaged . | . . . . Overloaded Fab Kills . | . . . . Hacking | -11 -10 -10 -9 --------- Run | Yrd Mat Min Mat Machines Accessed 1 | . 1 . . Terminals 1 | . 1 . . Fabricators . | . . . . Repair Stations . | . . . . Recycling Units . | . . . . Scanalyzers . | . . . . Garrison Access . | . . . . Total Hacks 1 | . 1 . . Successful 1 | . 1 . . Failed . | . . . . Catastrophic . | . . . . Database Lockouts . | . . . . Manual . | . . . . Terminals 1 | . 1 . . Fabricators . | . . . . Repair Stations . | . . . . Recycling Units . | . . . . Scanalyzers . | . . . . Garrison Access . | . . . . Terminal Hacks 1 | . 1 . . Robot Analysis 1 | . 1 . . Fabricator Hacks . | . . . . Repair Station Hacks . | . . . . Recycling Unit Hacks . | . . . . Scanalyzer . | . . . . Garrison Access Hacks . | . . . . Unauthorized Hacks . | . . . . Terminals . | . . . . Fabricators . | . . . . Repair Stations . | . . . . Recycling Units . | . . . . Scanalyzers . | . . . . Garrison Access . | . . . . Data Cores Recovered . | . . . . Used . | . . . . Hacking Detections . | . . . . Full Trace Events . | . . . . Feedback Events . | . . . . Feedback Blocked . | . . . . Robot Schematics Acquired . | . . . . Robots Built . | . . . . Authchips . | . . . . Time . | . . . . Total Robot Build Rating . | . . . . Part Schematics Acquired . | . . . . Parts Built . | . . . . Authchips . | . . . . Time . | . . . . Total Part Build Rating . | . . . . Parts Repaired . | . . . . Time . | . . . . Parts Recycled . | . . . . Recycled Matter . | . . . . Retrieved Matter . | . . . . Retrieved Components . | . . . . Parts Scanalyzed . | . . . . Part Schematics Acquired . | . . . . Parts Damaged . | . . . . Bothacking | -11 -10 -10 -9 ------------ Run | Yrd Mat Min Mat Used RIF Installer . | . . . . Robots Hacked . | . . . . Non-combat . | . . . . Combat . | . . . . Robot Hacks Applied . | . . . . Relay Couplers Released . | . . . . Fabnet Peak Effective % . | . . . . Robots Rewired . | . . . . Allies Hacked . | . . . . Hacks Repelled . | . . . . Allies | -11 -10 -10 -9 -------- Run | Yrd Mat Min Mat Total Allies . | . . . . Largest Group . | . . . . Highest-Rated Group . | . . . . Highest-Rated Ally . | . . . . Total Orders . | . . . . Ally Attacks . | . . . . Total Damage . | . . . . Kills . | . . . . Allies Corrupted . | . . . . Allies Melted . | . . . . Intel | -11 -10 -10 -9 ------- Run | Yrd Mat Min Mat Robot Analysis Total 1 | . 1 . . Derelict Logs Recovered 1 | . . 1 . Drone Launches . | . . . . Drone Recoveries . | . . . . Exploration | -11 -10 -10 -9 ------------- Run | Yrd Mat Min Mat Turns Passed 617 | 44 304 67 202 Spaces Moved 441 | 33 263 45 100 Core 37 | 5 . 16 16 Treads . | . . . . Legs 84 | . . . 84 Wheels 320 | 28 263 29 . Hover . | . . . . Flight . | . . . . Fastest Speed 50 | 50 90 90 120 Average Speed 105 | 83 90 129 140 Slowest Speed 200 | 90 90 200 200 Overloaded Moves . | . . . . Propulsion Burnouts . | . . . . Robots Hopped . | . . . . Cave-ins Triggered . | . . . . Exploration Rate (%) 22 | 4 50 20 15 Regions Visited 3 Branch Regions 1 Pre-discovered Areas . | . . . . Known Exits Taken . | . . . . Unknown Exits Taken 3 | 1 1 1 . Scrap Searched . | . . . . Spaces Dug . | . . . . Terrain Destroyed 12 | . 12 . . Melee . | . . . . Projectile . | . . . . AOE 12 | . 12 . . Terrain Rammed . | . . . . Walls Destroyed . | . . . . Machines Disabled . | . . . . Actions | -11 -10 -10 -9 --------- Run | Yrd Mat Min Mat Total 547 | 48 297 49 153 Wait 40 | . 3 . 37 Move 438 | 32 262 44 100 Hop . | . . . . Pick Up 20 | 10 9 . 1 Fast Attach . | . . . . Attach 14 | 5 3 2 4 Detach . | . . . . Swap 4 | 1 2 . 1 Drop 1 | . 1 . . Fire 30 | . 17 3 10 Melee . | . . . . Ram . | . . . . Kick . | . . . . Crush . | . . . . Escape Stasis . | . . . . Rewire . | . . . . Trap . | . . . . Miscellaneous . | . . . . Route ------- -11/Scrapyard -10/Materials (discovered 2 exits: [*Min] / [Sub]) -10/Mines -9/Materials History --------- Turn | Location | Event 2 | -11/Scrapyard | Met Revision 17 15 | -11/Scrapyard | Discovered new exit (range 16) 45 | -11/Scrapyard | Entered Materials 124 | -10/Materials | Discovered new exit (range 9) 313 | -10/Materials | Build established: Mutant 325 | -10/Materials | Discovered new exit (range 13) 349 | -10/Materials | Entered Mines 350 | -10/Mines | Assembled infested the area 355 | -10/Mines | Assisted by a Guerilla fighting off Assembled 371 | -10/Mines | Learned Materials garrison access intel 400 | -10/Mines | Discovered new exit (range 10) 416 | -10/Mines | Entered Materials 416 | -9/Materials | Evolved 2 slots: Propulsion x1, Utility x1 417 | -9/Materials | Lost 6 parts (1p2n1u2w) 599 | -9/Materials | Core integrity fell below 50% 611 | -9/Materials | Core integrity fell below 20% 618 | -9/Materials | Destroyed by L-31 Rogue with Katana Last Messages --------------- 00528_ Acquired 53 matter. 00529_ Acquired 6 matter. 00550_ K-01 Serf collects debris. 00565_ Aluminum Leg severed. 00568_ K-01 Serf collects debris. 00571_ Ion Engine destroyed. 00573_ K-01 Serf collects debris. 00574_ S-10 Pest destroyed. 00576_ K-01 Serf destroyed. 00577_ Terrain Scanner destroyed. 00580_ K-01 Serf collects debris. 00586_ Aluminum Leg destroyed. 00588_ Lgt. Assault Rifle destroyed. 00600_ Triggered Blade Trap. 00600_ Massive razor-sharp blades shoot up from within the floor. 00600_ Core Shielding severed. 00605_ K-01 Serf collects debris. 00611_ U-05 Engineer lays Concrete. 00612_ K-01 Serf collects debris. Map ----- +----------------------------------------------------+ | ???????????####+##+#### = ##? | | ???????????# #?? | | ???????????# ############+### #?? | | ???????????# #???????#??????## #?? | | ??????????# = #???????????????# # | | ??????????# %= !% #???#??????????##==!!==# | | ??????????# [ * #????#??????????#==!!==# | | ??????????# ######### #???????????????######## | | ??????????????????????# #?#????????????#???????? | | ??????????????????????# #??????????????????????? | | ???????????????????? ?# #??????????????????????? | | ??????????????????????# #??????????????????????? | | ??????????????????????#k #??????????????????????? | | ??????????????????????# #??????????????????????? | | ??????????????????????# s #??????????????????????? | | ??????????????????????# u#?#????????????????????? | | ??????????????????????# #??????????????????????? | | ??????????????????????#ss!#??????????????????????? | | ??????????????????????# #??????????????????????? | | ??????????????????????# #??????????????????????? | | ??????????????????????# #??????????????????????? | | ??????????????????????# #??????????????????????? | | ??????????????????????# #??????????????????????? | | ??????????????????????# g#??????????????????????? | | ??????????????????????# l#??????????????????????? | | ??????????????????????# @#??????????????????????? | | ??????????????????????# #??????????????????????? | | ??????????????????????# #??????????????????????? | | ??????????????????????# #??????????????????????? | | ??????????????????????# #??????????????????????? | | ??????????????????????# #??????????????????????? | | ??????????????????????# #??????????????????????? | | ??????????????????????# #??????????????????????? | | ??????????????????????# #??????????????????????? | | ??????????????????????# ???????????????????????? | | ??????????????????????# ???????????????????????? | | ??????????????????????# ???????????????????????? | | ??????????????????????####???????????????????????? | | ?????????????????????????????????????????????????? | | ?????????????????????????????????????????????????? | | ?????????????????????????????????????????????????? | | ?????????????????????????????????????????????????? | | ?????????????????????????????????????????????????? | | ?????????????????????????????????????????????????? | | ?????????????????????????????????????????????????? | | ?????????????????????????????????????????????????? | | ?????????????????????????????????????????????????? | | ?????????????????????????????????????????????????? | | ?????????????????????????????????????????????????? | | ?????????????????????????????????????????????????? | +----------------------------------------------------+ Best States ------------- Heat Dissipation 28 Energy Generation 10 Energy Capacity 250 Matter Stores 300 Matter Capacity 300 Sight Range 16 Terrain Scan Range 14 Terrain Scan Density 10 Core Shielding 20 Evasion (%) 55 Item Schematics ----------------- None Robot Schematics ------------------ None Fabricated ------------ Nothing Alien Tech Used ----------------- None Achievements -------------- None Challenges ------------ None Game ------ Seed XenonGhostNanosword Manual? 0 Play Time 00:17:16 Cumulative 24.2 hours Start 2024.04.20 @ 12:43:33 End 2024.04.20 @ 13:22:19 Sessions 1 Manual Loads 0 Difficulty Rogue Special Mode None Game No. 29 Rogue 29 Adventurer 0 Explorer 0 Win Type - Total 0 Types 0/0/0/0/0/0/0/0/0 Lore% 10 Gallery% 24 Achievement% 18 Wizard Run 0 Options --------- Layout 2 ASCII 0 Keyboard 0 Movement Mouse Keybinds 0 Fullscreen 1 Font 48/Smallcaps Map View 50x44 Zoom Use 0% Tactical HUD 1 Map Filters NONE Filters NONE Steam 1 RUN: 01716137-5e25-4657-ad71-2ba0d029cea8